[Event "Titled Tuesday Blitz November 22 Late 2022"]
[White "Sanchez, Robert"]
[Black "Thomas, Anysia"]
[WhiteFideId "2034360"]
[BlackFideId "670472"]
[WhiteElo "2312"]
[BlackElo "2069"]
[Result "1-0"]
[Round "06"]
[TimeControl "180+1"]
[Date "2022.11.23"]
[WhiteClock "0:00:52"]
[BlackClock "0:00:06"]

1. e4 {[%clk 0:03:00]}  c5 {[%clk 0:02:57]} 2. Nf3 {[%clk 0:03:01]}  Nc6 {[%clk 0:02:56]} 3. d4 {[%clk 0:03:01]}  cxd4 {[%clk 0:02:57]} 4. Nxd4 {[%clk 0:03:02]}  g6 {[%clk 0:02:56]} 5. Nc3 {[%clk 0:03:03]}  Bg7 {[%clk 0:02:56]} 6. Be3 {[%clk 0:03:03]}  Nf6 {[%clk 0:02:56]} 7. Bc4 {[%clk 0:03:02]}  O-O {[%clk 0:02:54]} 8. Bb3 {[%clk 0:03:02]}  d6 {[%clk 0:02:43]} 9. f3 {[%clk 0:03:02]}  Qa5 {[%clk 0:02:43]} 10. Qd2 {[%clk 0:03:02]}  Bd7 {[%clk 0:02:42]} 11. O-O-O {[%clk 0:03:02]}  Rfc8 {[%clk 0:02:39]} 12. h4 {[%clk 0:03:01]}  h5 {[%clk 0:02:36]} 13. Kb1 {[%clk 0:03:00]}  Ne5 {[%clk 0:02:27]} 14. Bh6 {[%clk 0:02:55]}  Bh8 {[%clk 0:02:26]} 15. g4 {[%clk 0:02:52]}  Nc4 {[%clk 0:02:19]} 16. Qe1 {[%clk 0:02:49]}  b5 {[%clk 0:01:47]} 17. gxh5 {[%clk 0:02:46]}  Nxh5 {[%clk 0:01:40]} 18. Nd5 {[%clk 0:02:35]}  Qxe1 {[%clk 0:01:19]} 19. Rhxe1 {[%clk 0:02:36]}  Kh7 {[%clk 0:01:19]} 20. Bg5 {[%clk 0:02:24]}  e6 {[%clk 0:01:14]} 21. Nc3 {[%clk 0:01:54]}  Rab8 {[%clk 0:00:46]} 22. Bxc4 {[%clk 0:01:49]}  Rxc4 {[%clk 0:00:43]} 23. Nb3 {[%clk 0:01:43]}  b4 {[%clk 0:00:25]} 24. Ne2 {[%clk 0:01:36]}  Rbc8 {[%clk 0:00:18]} 25. Rxd6 {[%clk 0:01:24]}  Bb5 {[%clk 0:00:17]} 26. Ned4 {[%clk 0:01:18]}  Ba4 {[%clk 0:00:13]} 27. e5 {[%clk 0:01:13]}  Bg7 {[%clk 0:00:10]} 28. f4 {[%clk 0:00:59]}  Ng3 {[%clk 0:00:09]} 29. Ra6 {[%clk 0:00:59]}  Bxb3 {[%clk 0:00:07]} 30. Nxb3 {[%clk 0:00:57]}  Rxc2 {[%clk 0:00:07]} 31. Rc1 {[%clk 0:00:54]}  Rxc1+ {[%clk 0:00:06]} 32. Nxc1 {[%clk 0:00:55]}  Ne4 {[%clk 0:00:06]} 33. Nb3 {[%clk 0:00:52]} 1-0


[Site "https://www.chess.com"]

[Event "Titled Tuesday Blitz November 22 Late 2022"]
[White "Santos Flores, Alberto"]
[Black "Suder, Jakub"]
[WhiteFideId "3601234"]
[BlackFideId "1195310"]
[WhiteElo "2235"]
[BlackElo "2243"]
[Result "0-1"]
[Round "06"]
[TimeControl "180+1"]
[Date "2022.11.23"]
[WhiteClock "0:00:23"]
[BlackClock "0:01:30"]

1. d4 {[%clk 0:02:57]}  d5 {[%clk 0:02:59]} 2. Nf3 {[%clk 0:02:57]}  Nf6 {[%clk 0:02:59]} 3. c4 {[%clk 0:02:57]}  e6 {[%clk 0:03:00]} 4. Nc3 {[%clk 0:02:56]}  a6 {[%clk 0:02:59]} 5. c5 {[%clk 0:02:57]}  b6 {[%clk 0:02:58]} 6. cxb6 {[%clk 0:02:57]}  cxb6 {[%clk 0:02:57]} 7. Bf4 {[%clk 0:02:57]}  Bb7 {[%clk 0:02:58]} 8. e3 {[%clk 0:02:57]}  Nbd7 {[%clk 0:02:58]} 9. h3 {[%clk 0:02:57]}  Be7 {[%clk 0:02:58]} 10. Bd3 {[%clk 0:02:57]}  O-O {[%clk 0:02:58]} 11. O-O {[%clk 0:02:57]}  Ne4 {[%clk 0:02:57]} 12. Rc1 {[%clk 0:02:49]}  Rc8 {[%clk 0:02:54]} 13. Qe2 {[%clk 0:02:46]}  b5 {[%clk 0:02:53]} 14. a4 {[%clk 0:02:37]}  b4 {[%clk 0:02:51]} 15. Nb1 {[%clk 0:02:36]}  a5 {[%clk 0:02:48]} 16. Nbd2 {[%clk 0:02:33]}  Qb6 {[%clk 0:02:40]} 17. Bb5 {[%clk 0:02:17]}  Bc6 {[%clk 0:02:32]} 18. Bxc6 {[%clk 0:01:47]}  Rxc6 {[%clk 0:02:31]} 19. Nxe4 {[%clk 0:01:47]}  dxe4 {[%clk 0:02:30]} 20. Nd2 {[%clk 0:01:48]}  Rfc8 {[%clk 0:02:23]} 21. Nc4 {[%clk 0:01:18]}  Qa6 {[%clk 0:02:22]} 22. b3 {[%clk 0:01:18]}  Nb6 {[%clk 0:02:19]} 23. Nxb6 {[%clk 0:00:40]}  Qxe2 {[%clk 0:02:05]} 24. Nxc8 {[%clk 0:00:40]}  Rxc1 {[%clk 0:02:04]} 25. Rxc1 {[%clk 0:00:33]}  Bf8 {[%clk 0:01:54]} 26. Nd6 {[%clk 0:00:31]}  g5 {[%clk 0:01:44]} 27. Be5 {[%clk 0:00:27]}  f6 {[%clk 0:01:42]} 28. g3 {[%clk 0:00:24]}  fxe5 {[%clk 0:01:37]} 29. dxe5 {[%clk 0:00:24]}  Qd2 {[%clk 0:01:33]} 30. Rc8 {[%clk 0:00:23]}  Qd1+ {[%clk 0:01:30]} 31. Kg2 {[%clk 0:00:23]}  Qxb3 {[%clk 0:01:30]} 0-1


[Site "https://www.chess.com"]

[Event "Titled Tuesday Blitz November 22 Late 2022"]
[White "Schut, Han"]
[Black "Sariego Figueredo, Wilfredo"]
[WhiteFideId "1005561"]
[BlackFideId "3500080"]
[WhiteElo "2024"]
[BlackElo "2309"]
[Result "1-0"]
[Round "06"]
[TimeControl "180+1"]
[Date "2022.11.23"]
[WhiteClock "0:00:15"]
[BlackClock "0:00:04"]

1. e4 {[%clk 0:03:00]}  c5 {[%clk 0:02:59]} 2. Nf3 {[%clk 0:02:59]}  a6 {[%clk 0:02:56]} 3. c4 {[%clk 0:02:58]}  Nc6 {[%clk 0:02:55]} 4. d4 {[%clk 0:02:59]}  cxd4 {[%clk 0:02:55]} 5. Nxd4 {[%clk 0:03:00]}  Nf6 {[%clk 0:02:55]} 6. Nc3 {[%clk 0:02:59]}  e5 {[%clk 0:02:49]} 7. Nc2 {[%clk 0:02:50]}  Bc5 {[%clk 0:02:46]} 8. Be2 {[%clk 0:02:50]}  d6 {[%clk 0:02:44]} 9. O-O {[%clk 0:02:49]}  O-O {[%clk 0:02:38]} 10. Be3 {[%clk 0:02:39]}  Bxe3 {[%clk 0:02:32]} 11. Nxe3 {[%clk 0:02:40]}  Nd4 {[%clk 0:02:32]} 12. f3 {[%clk 0:02:34]}  Be6 {[%clk 0:02:32]} 13. Rc1 {[%clk 0:02:28]}  Nd7 {[%clk 0:02:26]} 14. b3 {[%clk 0:02:20]}  Nb8 {[%clk 0:02:18]} 15. Nc2 {[%clk 0:02:14]}  Nbc6 {[%clk 0:02:14]} 16. Nxd4 {[%clk 0:02:14]}  Nxd4 {[%clk 0:02:14]} 17. Bd3 {[%clk 0:02:15]}  f5 {[%clk 0:02:06]} 18. exf5 {[%clk 0:02:15]}  Bxf5 {[%clk 0:02:05]} 19. Kh1 {[%clk 0:02:07]}  Rf6 {[%clk 0:01:46]} 20. Ne2 {[%clk 0:01:47]}  Bxd3 {[%clk 0:01:42]} 21. Qxd3 {[%clk 0:01:46]}  Nf5 {[%clk 0:01:42]} 22. Kg1 {[%clk 0:01:31]}  Qb6+ {[%clk 0:01:39]} 23. c5 {[%clk 0:01:24]}  dxc5 {[%clk 0:01:34]} 24. Qd5+ {[%clk 0:01:23]}  Kh8 {[%clk 0:01:34]} 25. Qxc5 {[%clk 0:01:24]}  Ne3 {[%clk 0:01:16]} 26. Qxb6 {[%clk 0:01:13]}  Rxb6 {[%clk 0:01:17]} 27. Rfe1 {[%clk 0:01:12]}  Rg6 {[%clk 0:01:02]} 28. Ng3 {[%clk 0:01:12]}  Nd5 {[%clk 0:00:54]} 29. Rxe5 {[%clk 0:01:07]}  Nb4 {[%clk 0:00:54]} 30. Rce1 {[%clk 0:00:59]}  Kg8 {[%clk 0:00:48]} 31. Re8+ {[%clk 0:00:58]}  Rxe8 {[%clk 0:00:47]} 32. Rxe8+ {[%clk 0:00:59]}  Kf7 {[%clk 0:00:48]} 33. Rc8 {[%clk 0:00:48]}  b5 {[%clk 0:00:31]} 34. a3 {[%clk 0:00:41]}  Nd5 {[%clk 0:00:23]} 35. Ne4 {[%clk 0:00:40]}  Nf4 {[%clk 0:00:16]} 36. g3 {[%clk 0:00:38]}  Nd3 {[%clk 0:00:15]} 37. Rc7+ {[%clk 0:00:37]}  Kf8 {[%clk 0:00:14]} 38. Nc5 {[%clk 0:00:32]}  Nxc5 {[%clk 0:00:10]} 39. Rxc5 {[%clk 0:00:33]}  Rd6 {[%clk 0:00:10]} 40. Kg2 {[%clk 0:00:21]}  h6 {[%clk 0:00:09]} 41. b4 {[%clk 0:00:20]}  Rd3 {[%clk 0:00:08]} 42. Rc8+ {[%clk 0:00:17]}  Kf7 {[%clk 0:00:08]} 43. Rc7+ {[%clk 0:00:18]}  Kg8 {[%clk 0:00:08]} 44. f4 {[%clk 0:00:16]}  Rxa3 {[%clk 0:00:08]} 45. Ra7 {[%clk 0:00:15]}  Ra4 {[%clk 0:00:08]} 46. Kh3 {[%clk 0:00:15]}  Rxb4 {[%clk 0:00:07]} 47. Rxa6 {[%clk 0:00:16]}  Rb2 {[%clk 0:00:07]} 48. Rb6 {[%clk 0:00:15]}  b4 {[%clk 0:00:04]} 49. Kg4 {[%clk 0:00:15]} 1-0


[Site "https://www.chess.com"]

[Event "Titled Tuesday Blitz November 22 Late 2022"]
[White "Sebag, Marie"]
[Black "Burke, Paul"]
[WhiteFideId "617822"]
[BlackFideId "2605767"]
[WhiteElo "2440"]
[BlackElo "1917"]
[Result "1-0"]
[Round "06"]
[TimeControl "180+1"]
[Date "2022.11.23"]
[WhiteClock "0:01:44"]
[BlackClock "0:00:10"]

1. c4 {[%clk 0:03:00]}  a6 {[%clk 0:02:58]} 2. Nc3 {[%clk 0:02:59]}  d6 {[%clk 0:02:58]} 3. g3 {[%clk 0:02:59]}  g6 {[%clk 0:02:58]} 4. Bg2 {[%clk 0:02:58]}  Bg7 {[%clk 0:02:58]} 5. d3 {[%clk 0:02:58]}  Nd7 {[%clk 0:02:57]} 6. Bd2 {[%clk 0:02:58]}  h6 {[%clk 0:02:56]} 7. Rb1 {[%clk 0:02:58]}  e6 {[%clk 0:02:56]} 8. Nf3 {[%clk 0:02:58]}  Ne7 {[%clk 0:02:56]} 9. Qc1 {[%clk 0:02:57]}  Rb8 {[%clk 0:02:49]} 10. O-O {[%clk 0:02:55]}  b5 {[%clk 0:02:49]} 11. cxb5 {[%clk 0:02:55]}  axb5 {[%clk 0:02:49]} 12. b4 {[%clk 0:02:55]}  Bb7 {[%clk 0:02:42]} 13. Nxb5 {[%clk 0:02:52]}  Bxf3 {[%clk 0:02:41]} 14. Nxc7+ {[%clk 0:02:52]}  Kf8 {[%clk 0:02:39]} 15. Bxf3 {[%clk 0:02:51]}  Rc8 {[%clk 0:02:37]} 16. Nxe6+ {[%clk 0:02:49]}  fxe6 {[%clk 0:02:36]} 17. Qa3 {[%clk 0:02:49]}  Kf7 {[%clk 0:02:16]} 18. Rfc1 {[%clk 0:02:44]}  Rxc1+ {[%clk 0:02:09]} 19. Rxc1 {[%clk 0:02:44]}  Rf8 {[%clk 0:02:04]} 20. Qa7 {[%clk 0:02:42]}  Ne5 {[%clk 0:01:58]} 21. Bg2 {[%clk 0:02:38]}  Kg8 {[%clk 0:01:53]} 22. Rc7 {[%clk 0:02:37]}  Rf7 {[%clk 0:01:45]} 23. b5 {[%clk 0:02:36]}  Nf5 {[%clk 0:01:36]} 24. Rxf7 {[%clk 0:02:34]}  Nxf7 {[%clk 0:01:33]} 25. b6 {[%clk 0:02:34]}  Bd4 {[%clk 0:01:32]} 26. Ba5 {[%clk 0:02:31]}  d5 {[%clk 0:01:11]} 27. e3 {[%clk 0:02:23]}  Bc5 {[%clk 0:01:04]} 28. d4 {[%clk 0:02:22]}  Bd6 {[%clk 0:01:03]} 29. b7 {[%clk 0:02:20]}  Qb8 {[%clk 0:01:03]} 30. Bb6 {[%clk 0:02:15]}  Nd8 {[%clk 0:00:55]} 31. Qxb8 {[%clk 0:02:13]}  Bxb8 {[%clk 0:00:53]} 32. Bxd8 {[%clk 0:02:13]}  Nd6 {[%clk 0:00:51]} 33. a4 {[%clk 0:02:07]}  Nxb7 {[%clk 0:00:51]} 34. Bb6 {[%clk 0:02:07]}  Nd6 {[%clk 0:00:45]} 35. a5 {[%clk 0:02:07]}  Nc4 {[%clk 0:00:43]} 36. Bd8 {[%clk 0:02:05]}  Kf8 {[%clk 0:00:35]} 37. Bf1 {[%clk 0:01:59]}  Ke8 {[%clk 0:00:31]} 38. Bb6 {[%clk 0:01:53]}  Nxb6 {[%clk 0:00:27]} 39. axb6 {[%clk 0:01:53]}  Kd7 {[%clk 0:00:27]} 40. Bd3 {[%clk 0:01:52]}  g5 {[%clk 0:00:25]} 41. Kg2 {[%clk 0:01:52]}  Kc6 {[%clk 0:00:25]} 42. Kf3 {[%clk 0:01:52]}  Kxb6 {[%clk 0:00:24]} 43. Kg4 {[%clk 0:01:49]}  e5 {[%clk 0:00:18]} 44. dxe5 {[%clk 0:01:47]}  Bxe5 {[%clk 0:00:18]} 45. Kh5 {[%clk 0:01:47]}  Bg7 {[%clk 0:00:16]} 46. Kg6 {[%clk 0:01:47]}  Bf8 {[%clk 0:00:16]} 47. Kf7 {[%clk 0:01:47]}  Bd6 {[%clk 0:00:15]} 48. Kg7 {[%clk 0:01:47]}  h5 {[%clk 0:00:13]} 49. Kg6 {[%clk 0:01:47]}  h4 {[%clk 0:00:12]} 50. Kxg5 {[%clk 0:01:45]}  hxg3 {[%clk 0:00:12]} 51. hxg3 {[%clk 0:01:45]}  Kc5 {[%clk 0:00:12]} 52. Kf5 {[%clk 0:01:45]}  d4 {[%clk 0:00:12]} 53. e4 {[%clk 0:01:44]}  Kb4 {[%clk 0:00:11]} 54. e5 {[%clk 0:01:44]}  Bf8 {[%clk 0:00:10]} 55. Ke4 {[%clk 0:01:44]}  Kc3 {[%clk 0:00:10]} 56. f4 {[%clk 0:01:44]} 1-0


[Site "https://www.chess.com"]

[Event "Titled Tuesday Blitz November 22 Late 2022"]
[White "Sztokbant, Bernardo Vainzoff"]
[Black "Gascon Del Nogal, Jose Rafael"]
[WhiteFideId "2115956"]
[BlackFideId "3902463"]
[WhiteElo "2228"]
[BlackElo "2473"]
[Result "0-1"]
[Round "06"]
[TimeControl "180+1"]
[Date "2022.11.23"]
[WhiteClock "0:00:01"]
[BlackClock "0:00:03"]

1. e4 {[%clk 0:02:58]}  c5 {[%clk 0:02:56]} 2. Nc3 {[%clk 0:02:57]}  Nc6 {[%clk 0:02:55]} 3. g3 {[%clk 0:02:54]}  g6 {[%clk 0:02:55]} 4. Bg2 {[%clk 0:02:52]}  Bg7 {[%clk 0:02:56]} 5. f4 {[%clk 0:02:52]}  d6 {[%clk 0:02:53]} 6. Nf3 {[%clk 0:02:52]}  Nh6 {[%clk 0:02:49]} 7. O-O {[%clk 0:02:51]}  O-O {[%clk 0:02:50]} 8. d3 {[%clk 0:02:51]}  f5 {[%clk 0:02:51]} 9. Ng5 {[%clk 0:02:50]}  Nf7 {[%clk 0:02:49]} 10. Nxf7 {[%clk 0:02:44]}  Rxf7 {[%clk 0:02:47]} 11. Be3 {[%clk 0:02:44]}  Nd4 {[%clk 0:02:47]} 12. Qd2 {[%clk 0:02:41]}  e6 {[%clk 0:02:44]} 13. Rae1 {[%clk 0:02:42]}  Rb8 {[%clk 0:02:42]} 14. Nd1 {[%clk 0:02:42]}  Bd7 {[%clk 0:02:35]} 15. c3 {[%clk 0:02:42]}  Nc6 {[%clk 0:02:33]} 16. Nf2 {[%clk 0:02:42]}  b5 {[%clk 0:02:28]} 17. Nh3 {[%clk 0:02:41]}  h6 {[%clk 0:02:26]} 18. exf5 {[%clk 0:02:37]}  gxf5 {[%clk 0:02:26]} 19. d4 {[%clk 0:02:32]}  cxd4 {[%clk 0:02:22]} 20. cxd4 {[%clk 0:02:32]}  Ne7 {[%clk 0:01:59]} 21. d5 {[%clk 0:02:31]}  Nxd5 {[%clk 0:01:58]} 22. Bxd5 {[%clk 0:02:25]}  exd5 {[%clk 0:01:58]} 23. Qxd5 {[%clk 0:02:15]}  Bc8 {[%clk 0:01:52]} 24. Rd1 {[%clk 0:02:06]}  Bb7 {[%clk 0:01:29]} 25. Qxd6 {[%clk 0:02:06]}  Qe8 {[%clk 0:01:29]} 26. Nf2 {[%clk 0:02:01]}  Rc8 {[%clk 0:01:03]} 27. Rfe1 {[%clk 0:01:43]}  Re7 {[%clk 0:00:53]} 28. Bd2 {[%clk 0:01:23]}  Re2 {[%clk 0:00:46]} 29. Kf1 {[%clk 0:00:57]}  Bf3 {[%clk 0:00:39]} 30. Qd3 {[%clk 0:00:37]}  Rxe1+ {[%clk 0:00:30]} 31. Rxe1 {[%clk 0:00:36]}  Qh5 {[%clk 0:00:30]} 32. Re7 {[%clk 0:00:22]}  Bc6 {[%clk 0:00:17]} 33. h3 {[%clk 0:00:09]}  Qg6 {[%clk 0:00:13]} 34. g4 {[%clk 0:00:05]}  Qf6 {[%clk 0:00:08]} 35. Rxg7+ {[%clk 0:00:03]}  Qxg7 {[%clk 0:00:08]} 36. Bc3 {[%clk 0:00:03]}  Qf7 {[%clk 0:00:06]} 37. Qd6 {[%clk 0:00:02]}  Bb7 {[%clk 0:00:03]} 38. Qxh6 {[%clk 0:00:02]}  Qh7 {[%clk 0:00:03]} 39. Qg5+ {[%clk 0:00:02]}  Kf8 {[%clk 0:00:03]} 40. Bb4+ {[%clk 0:00:02]}  Ke8 {[%clk 0:00:03]} 41. Qxf5 {[%clk 0:00:01]}  Qf7 {[%clk 0:00:03]} 42. Qe5+ {[%clk 0:00:01]}  Kd8 {[%clk 0:00:03]} 0-1


[Site "https://www.chess.com"]

[Event "Titled Tuesday Blitz November 22 Late 2022"]
[White "Tari, Aryan"]
[Black "Bobkov, Vadim"]
[WhiteFideId "1510045"]
[BlackFideId "34110876"]
[WhiteElo "2612"]
[BlackElo "2172"]
[Result "0-1"]
[Round "06"]
[TimeControl "180+1"]
[Date "2022.11.22"]
[WhiteClock "0:00:01"]
[BlackClock "0:00:14"]

1. Nf3 {[%clk 0:03:00]}  d5 {[%clk 0:03:00]} 2. e3 {[%clk 0:03:00]}  Nf6 {[%clk 0:03:00]} 3. c4 {[%clk 0:03:00]}  e6 {[%clk 0:03:00]} 4. Nc3 {[%clk 0:03:00]}  b6 {[%clk 0:03:00]} 5. b3 {[%clk 0:02:58]}  Bb7 {[%clk 0:03:00]} 6. Bb2 {[%clk 0:02:59]}  Nbd7 {[%clk 0:03:00]} 7. Rc1 {[%clk 0:02:57]}  c5 {[%clk 0:03:00]} 8. cxd5 {[%clk 0:02:57]}  Nxd5 {[%clk 0:03:00]} 9. Be2 {[%clk 0:02:46]}  Be7 {[%clk 0:02:49]} 10. Nxd5 {[%clk 0:02:35]}  Bxd5 {[%clk 0:02:50]} 11. O-O {[%clk 0:02:13]}  O-O {[%clk 0:02:50]} 12. d3 {[%clk 0:02:06]}  Rc8 {[%clk 0:02:48]} 13. Qd2 {[%clk 0:01:58]}  Qc7 {[%clk 0:02:43]} 14. b4 {[%clk 0:01:55]}  Qb7 {[%clk 0:02:40]} 15. a3 {[%clk 0:01:51]}  Rc7 {[%clk 0:02:28]} 16. b5 {[%clk 0:01:30]}  Qa8 {[%clk 0:02:18]} 17. e4 {[%clk 0:01:18]}  Bb7 {[%clk 0:02:18]} 18. Qf4 {[%clk 0:01:16]}  Rfc8 {[%clk 0:02:12]} 19. Ng5 {[%clk 0:01:17]}  Bf6 {[%clk 0:01:42]} 20. Rc2 {[%clk 0:00:49]}  h6 {[%clk 0:01:17]} 21. Nxf7 {[%clk 0:00:49]}  Kxf7 {[%clk 0:01:17]} 22. e5 {[%clk 0:00:50]}  Bxg2 {[%clk 0:01:18]} 23. exf6 {[%clk 0:00:44]}  Nxf6 {[%clk 0:01:16]} 24. Re1 {[%clk 0:00:24]}  Qd5 {[%clk 0:01:17]} 25. Be5 {[%clk 0:00:20]}  Rd7 {[%clk 0:01:16]} 26. Bh5+ {[%clk 0:00:18]}  Ke7 {[%clk 0:01:15]} 27. Bg4 {[%clk 0:00:16]}  Rf8 {[%clk 0:01:00]} 28. Bb2 {[%clk 0:00:12]}  Nxg4 {[%clk 0:00:55]} 29. Qxg4 {[%clk 0:00:13]}  Bf3 {[%clk 0:00:55]} 30. Qxg7+ {[%clk 0:00:11]}  Ke8 {[%clk 0:00:55]} 31. Qg6+ {[%clk 0:00:10]}  Kd8 {[%clk 0:00:53]} 32. Rxe6 {[%clk 0:00:08]}  Qxd3 {[%clk 0:00:35]} 33. Qxd3 {[%clk 0:00:08]}  Rxd3 {[%clk 0:00:35]} 34. h4 {[%clk 0:00:09]}  Rd1+ {[%clk 0:00:27]} 35. Kh2 {[%clk 0:00:09]}  Rg8 {[%clk 0:00:27]} 36. Rc1 {[%clk 0:00:06]}  Rd2 {[%clk 0:00:27]} 37. Bf6+ {[%clk 0:00:04]}  Kd7 {[%clk 0:00:26]} 38. Re7+ {[%clk 0:00:05]}  Kd6 {[%clk 0:00:27]} 39. Rf1 {[%clk 0:00:04]}  Rg2+ {[%clk 0:00:18]} 40. Kh3 {[%clk 0:00:03]}  Rg6 {[%clk 0:00:19]} 41. Bc3 {[%clk 0:00:04]}  Rd3 {[%clk 0:00:18]} 42. h5 {[%clk 0:00:02]}  Bxh5+ {[%clk 0:00:17]} 43. Kh4 {[%clk 0:00:03]}  Kxe7 {[%clk 0:00:17]} 44. Kxh5 {[%clk 0:00:02]}  Rg2 {[%clk 0:00:14]} 45. Rd1 {[%clk 0:00:01]}  Rh3# {[%clk 0:00:14]} 0-1


[Site "https://www.chess.com"]

[Event "Titled Tuesday Blitz November 22 Late 2022"]
[White "Tarnowska, Aleksandra"]
[Black "Kaplan, Avi Harrison"]
[WhiteFideId "1180967"]
[BlackFideId "30934559"]
[WhiteElo "1776"]
[BlackElo "1983"]
[Result "0-1"]
[Round "06"]
[TimeControl "180+1"]
[Date "2022.11.23"]
[WhiteClock "0:00:02"]
[BlackClock "0:00:08"]

1. e4 {[%clk 0:03:00]}  c5 {[%clk 0:03:00]} 2. Nf3 {[%clk 0:03:00]}  d6 {[%clk 0:03:01]} 3. Bb5+ {[%clk 0:02:59]}  Nd7 {[%clk 0:03:01]} 4. O-O {[%clk 0:02:59]}  a6 {[%clk 0:03:00]} 5. Bxd7+ {[%clk 0:02:57]}  Bxd7 {[%clk 0:02:58]} 6. d4 {[%clk 0:02:56]}  cxd4 {[%clk 0:02:58]} 7. Nxd4 {[%clk 0:02:56]}  Nf6 {[%clk 0:02:58]} 8. Nc3 {[%clk 0:02:54]}  e5 {[%clk 0:02:56]} 9. Nde2 {[%clk 0:02:37]}  Be7 {[%clk 0:02:54]} 10. Ng3 {[%clk 0:02:18]}  O-O {[%clk 0:02:54]} 11. Be3 {[%clk 0:02:13]}  Rc8 {[%clk 0:02:41]} 12. Qd2 {[%clk 0:01:58]}  Ng4 {[%clk 0:02:36]} 13. Rad1 {[%clk 0:01:49]}  b5 {[%clk 0:02:28]} 14. h3 {[%clk 0:01:39]}  Nxe3 {[%clk 0:02:27]} 15. fxe3 {[%clk 0:01:22]}  Be6 {[%clk 0:02:06]} 16. Nf5 {[%clk 0:01:20]}  Bxf5 {[%clk 0:02:06]} 17. exf5 {[%clk 0:01:20]}  Bg5 {[%clk 0:01:58]} 18. Qd3 {[%clk 0:01:10]}  Qb6 {[%clk 0:01:42]} 19. Nd5 {[%clk 0:01:00]}  Qc5 {[%clk 0:01:42]} 20. c3 {[%clk 0:00:59]}  e4 {[%clk 0:01:37]} 21. Qxe4 {[%clk 0:00:20]}  Rfe8 {[%clk 0:01:36]} 22. Qg4 {[%clk 0:00:21]}  Bxe3+ {[%clk 0:01:19]} 23. Kh1 {[%clk 0:00:21]}  Kh8 {[%clk 0:01:11]} 24. f6 {[%clk 0:00:19]}  g6 {[%clk 0:01:10]} 25. Qd7 {[%clk 0:00:15]}  Qa7 {[%clk 0:01:00]} 26. Qxd6 {[%clk 0:00:08]}  Rcd8 {[%clk 0:00:52]} 27. Qg3 {[%clk 0:00:04]}  Bh6 {[%clk 0:00:52]} 28. Qh4 {[%clk 0:00:04]}  Bf8 {[%clk 0:00:50]} 29. Rfe1 {[%clk 0:00:04]}  Rxe1+ {[%clk 0:00:31]} 30. Qxe1 {[%clk 0:00:05]}  Qc5 {[%clk 0:00:31]} 31. Nb4 {[%clk 0:00:04]}  Rc8 {[%clk 0:00:22]} 32. Nd3 {[%clk 0:00:03]}  Qb6 {[%clk 0:00:22]} 33. Qf1 {[%clk 0:00:03]}  Rc6 {[%clk 0:00:20]} 34. Ne5 {[%clk 0:00:03]}  Rxf6 {[%clk 0:00:19]} 35. Qe2 {[%clk 0:00:03]}  Qe6 {[%clk 0:00:19]} 36. Qe4 {[%clk 0:00:02]}  Kg7 {[%clk 0:00:19]} 37. Re1 {[%clk 0:00:03]}  Bd6 {[%clk 0:00:19]} 38. Qd4 {[%clk 0:00:03]}  Qf5 {[%clk 0:00:12]} 39. Nf3 {[%clk 0:00:02]}  Bc5 {[%clk 0:00:10]} 40. Qd3 {[%clk 0:00:02]}  Qxd3 {[%clk 0:00:10]} 41. Rg1 {[%clk 0:00:01]}  Rxf3 {[%clk 0:00:07]} 42. gxf3 {[%clk 0:00:01]}  Qxf3+ {[%clk 0:00:06]} 43. Rg2 {[%clk 0:00:02]}  Qxh3+ {[%clk 0:00:07]} 44. Rh2 {[%clk 0:00:02]}  Qf1# {[%clk 0:00:08]} 0-1


[Site "https://www.chess.com"]

[Event "Titled Tuesday Blitz November 22 Late 2022"]
[White "Terry, Renato"]
[Black "Bluebaum, Matthias"]
[WhiteFideId "3803457"]
[BlackFideId "24651516"]
[WhiteElo "2577"]
[BlackElo "2633"]
[Result "1-0"]
[Round "06"]
[TimeControl "180+1"]
[Date "2022.11.22"]
[WhiteClock "0:00:05"]
[BlackClock "0:00:05"]

1. Nf3 {[%clk 0:03:00]}  d5 {[%clk 0:02:59]} 2. e3 {[%clk 0:03:01]}  Nf6 {[%clk 0:02:58]} 3. b3 {[%clk 0:02:59]}  c5 {[%clk 0:02:56]} 4. Bb2 {[%clk 0:02:58]}  g6 {[%clk 0:02:56]} 5. Bb5+ {[%clk 0:02:57]}  Nbd7 {[%clk 0:02:53]} 6. Bxf6 {[%clk 0:02:53]}  exf6 {[%clk 0:02:53]} 7. O-O {[%clk 0:02:54]}  a6 {[%clk 0:02:52]} 8. Be2 {[%clk 0:02:53]}  Bg7 {[%clk 0:02:51]} 9. d4 {[%clk 0:02:53]}  O-O {[%clk 0:02:50]} 10. c3 {[%clk 0:02:39]}  f5 {[%clk 0:02:50]} 11. Qd2 {[%clk 0:02:37]}  b6 {[%clk 0:02:47]} 12. Rd1 {[%clk 0:02:36]}  Bb7 {[%clk 0:02:48]} 13. Na3 {[%clk 0:02:30]}  Qe7 {[%clk 0:02:48]} 14. Nc2 {[%clk 0:02:29]}  Rfd8 {[%clk 0:02:49]} 15. Qe1 {[%clk 0:02:26]}  Nf6 {[%clk 0:02:47]} 16. Rac1 {[%clk 0:02:08]}  Ne4 {[%clk 0:02:46]} 17. Bd3 {[%clk 0:02:02]}  a5 {[%clk 0:02:41]} 18. a4 {[%clk 0:01:30]}  Rac8 {[%clk 0:02:40]} 19. c4 {[%clk 0:01:28]}  dxc4 {[%clk 0:02:38]} 20. Bxc4 {[%clk 0:01:28]}  cxd4 {[%clk 0:02:25]} 21. Ncxd4 {[%clk 0:01:27]}  Bf6 {[%clk 0:02:19]} 22. Qe2 {[%clk 0:01:13]}  Kg7 {[%clk 0:02:18]} 23. h3 {[%clk 0:01:10]}  Rc5 {[%clk 0:01:59]} 24. Rd3 {[%clk 0:01:06]}  Nd6 {[%clk 0:01:56]} 25. Rcd1 {[%clk 0:00:49]}  Nxc4 {[%clk 0:01:45]} 26. bxc4 {[%clk 0:00:43]}  Rcc8 {[%clk 0:01:29]} 27. Rb3 {[%clk 0:00:37]}  Qc5 {[%clk 0:01:15]} 28. Rc1 {[%clk 0:00:24]}  Ba6 {[%clk 0:01:15]} 29. Qb2 {[%clk 0:00:23]}  Rd6 {[%clk 0:01:09]} 30. Qb1 {[%clk 0:00:16]}  f4 {[%clk 0:01:07]} 31. Nb5 {[%clk 0:00:14]}  Re6 {[%clk 0:01:03]} 32. exf4 {[%clk 0:00:10]}  Re2 {[%clk 0:01:03]} 33. Rf1 {[%clk 0:00:08]}  Bb7 {[%clk 0:00:57]} 34. Qd3 {[%clk 0:00:05]}  Re6 {[%clk 0:00:31]} 35. Ng5 {[%clk 0:00:05]}  Re7 {[%clk 0:00:29]} 36. Nd6 {[%clk 0:00:04]}  Rd7 {[%clk 0:00:14]} 37. Nxb7 {[%clk 0:00:04]}  Rxb7 {[%clk 0:00:15]} 38. Qd5 {[%clk 0:00:03]}  Rcc7 {[%clk 0:00:06]} 39. Qxc5 {[%clk 0:00:02]}  Rxc5 {[%clk 0:00:07]} 40. Ne4 {[%clk 0:00:03]}  Rxc4 {[%clk 0:00:08]} 41. Nd6 {[%clk 0:00:03]}  Rbc7 {[%clk 0:00:06]} 42. Ne8+ {[%clk 0:00:04]}  Kf8 {[%clk 0:00:04]} 43. Nxf6 {[%clk 0:00:04]}  Rxa4 {[%clk 0:00:05]} 44. Rxb6 {[%clk 0:00:04]}  Rc5 {[%clk 0:00:06]} 45. Nd7+ {[%clk 0:00:04]}  Kg7 {[%clk 0:00:05]} 46. Nxc5 {[%clk 0:00:05]} 1-0


[Site "https://www.chess.com"]